bitfinex/quotes_ETHUSD_20220309
["timestamp","ask_amount","ask_price","bid_price","bid_amount"]
[1646838721433,1.82852538,2741.0,2740.7,2.04211595]
[1646838721633,0.00388538,2741.0,2740.8,13.17211595]
[1646838721836,0.91222,2741.1,2740.9,1.36534871]
[1646838722045,0.91222,2741.1,2740.9,3.40247209]
[1646838722245,0.91222,2741.1,2741.0,2.04211595]
[1646838722440,0.91222,2741.1,2741.0,1.66534871]
[1646838722639,1.82438,2741.4,2741.0,2.78673444]
[1646838722839,1.82438,2741.4,2741.1,2.27739871]
[1646838723093,1.82438,2741.4,2741.2,1.36534871]
[1646838724589,1.82813452,2741.4,2741.2,1.36534871]
[1646838724783,0.21794415,2741.4,2741.2,1.36534871]
[1646838725183,0.26817298,2741.4,2741.2,1.36534871]
[1646838725583,0.26441846,2741.4,2741.2,1.36534871]
[1646838725885,0.26817298,2741.4,2741.2,1.36534871]
[1646838726083,0.21794415,2741.4,2741.2,1.36534871]
[1646838726487,2.75145559,2741.9,2741.4,11.13]
[1646838726488,0.01501559,2741.9,2741.4,11.13]
[1646838726690,0.16004671,2741.8,2741.6,11.13]
[1646838726936,0.08044394,2742.6,2741.8,11.13]
[1646838727140,0.01501559,2741.9,2741.7,11.13]
[1646838727335,0.01501559,2741.9,2741.8,13.4983179]
[1646838727535,0.01501559,2741.9,2741.8,13.9433179]
[1646838727735,0.01501559,2741.9,2741.8,2.8133179]
[1646838727935,0.91179,2742.3,2741.8,2.8133179]
[1646838728137,0.91179,2742.3,2741.8,13.9433179]
[1646838728336,0.91179,2742.3,2741.9,11.19748284]
[1646838728535,0.91179,2742.3,2742.0,12.4724907]
[1646838728734,0.91179,2742.3,2742.1,1.3424907]
[1646838729136,1.82352,2742.6,2742.2,11.13]
[1646838729339,0.15983227,2742.5,2742.3,12.4724907]
[1646838729535,0.91166,2742.7,2742.4,11.575]
[1646838729740,1.87840878,2742.9,2742.4,12.9174907]
[1646838729741,0.15969546,2742.6,2742.4,12.9174907]
[1646838729935,1.87840878,2742.9,2742.7,1.19080098]
[1646838730978,1.82326,2742.9,2742.7,1.19080098]
[1646838731882,0.00381066,2742.9,2742.7,1.19080098]
[1646838732082,0.00381066,2742.9,2742.7,12.32080098]
[1646838732685,2.5,2743.0,2742.7,12.32080098]
[1646838732884,0.00153779,2742.9,2742.7,1.19080098]
[1646838733286,0.00153779,2742.9,2742.7,2.10225908]
[1646838733787,2.5,2743.0,2742.7,13.23225908]
[1646838734187,0.00153779,2742.9,2742.8,11.13]
[1646838734436,0.00153779,2742.9,2742.8,0.91142]
[1646838734634,0.00153779,2742.9,2742.7,1.19080098]
[1646838734841,1.82484779,2742.9,2742.7,1.19080098]
[1646838735037,1.82331,2742.9,2742.3,0.07682417]
[1646838735239,0.04500813,2742.8,2742.1,3.3]
[1646838735437,0.91179,2742.7,2742.1,3.3]
[1646838735638,0.05089086,2742.6,2742.1,3.0]
[1646838735837,1.87429086,2742.6,2742.1,3.0]
[1646838736038,1.87429086,2742.6,2742.5,1.0285401]
[1646838736238,1.8234,2742.6,2742.5,1.0285401]
[1646838736840,1.8234,2742.6,2742.1,3.0]
[1646838737458,1.8234,2742.6,2742.0,0.8163119]
[1646838737639,1.8234,2742.6,2742.0,1.1163119]
[1646838737843,0.00400701,2742.5,2742.0,0.8163119]
[1646838738581,0.00400701,2742.5,2742.2,1.01760458]
[1646838738780,1.86693965,2742.6,2742.2,1.01760458]
[1646838738981,0.00382335,2742.4,2742.2,1.01760458]
[1646838739182,0.91551335,2742.4,2742.2,1.01760458]
[1646838739985,0.91169,2742.4,2742.2,1.01760458]
[1646838740182,0.9153931,2742.4,2742.2,1.31760458]
[1646838740482,0.9153931,2742.4,2742.3,11.13]
[1646838740680,0.0037031,2742.4,2742.3,11.13]
[1646838741083,0.91161,2742.8,2742.3,11.13]
[1646838741282,0.91161,2742.8,2742.2,1.83500869]
[1646838741481,0.00370305,2742.5,2742.3,11.13]
[1646838741684,0.00370305,2742.5,2742.4,0.91159]
[1646838742141,0.00370305,2742.5,2742.4,1.21159]
[1646838742339,0.91161,2742.8,2742.4,1.21159]
[1646838742544,0.00388672,2742.6,2742.4,1.21159]
[1646838743241,0.00388672,2742.6,2742.5,0.3]
[1646838743441,0.00388672,2742.6,2742.5,11.43]
[1646838743640,0.91161,2742.8,2742.5,11.875]
[1646838743841,0.00376393,2742.6,2742.5,0.745]
[1646838744841,1.80224929,2743.0,2742.7,11.13]
[1646838745046,1.80224929,2743.0,2742.6,2.01509411]
[1646838745244,0.00376389,2742.7,2742.6,2.46009411]
[1646838746085,0.91161,2742.8,2742.6,2.46009411]
[1646838746282,0.91537381,2742.8,2742.6,2.46009411]
[1646838746483,0.91537381,2742.8,2742.6,1.54860411]
[1646838747288,0.91161,2742.8,2742.6,1.54860411]
[1646838747490,0.91537138,2742.8,2742.6,1.54860411]
[1646838748591,0.91913276,2742.8,2742.6,1.54860411]
[1646838748788,0.91537138,2742.8,2742.6,1.54860411]
[1646838749639,0.91161,2742.8,2742.6,1.54860411]
[1646838749840,0.91520304,2742.8,2742.6,1.54860411]
[1646838750440,0.91520304,2742.8,2742.6,1.10360411]
[1646838751139,0.9152032,2742.8,2742.6,1.10360411]
[1646838752144,0.91161,2742.8,2742.6,1.10360411]
[1646838752344,0.9152032,2742.8,2742.6,1.10360411]
[1646838752749,0.9152032,2742.8,2742.2,0.445]
[1646838752944,0.043358,2742.7,2741.9,1.1307]
[1646838753192,0.05588929,2742.4,2742.0,1.30440543]
[1646838753390,0.05588929,2742.4,2742.1,1.30440543]
[1646838753589,0.05588929,2742.4,2741.7,18.2727]
[1646838753787,0.91188,2742.6,2742.1,0.93387295]
[1646838753788,0.00369473,2742.6,2742.1,0.93387295]
[1646838754390,0.91186,2742.3,2742.1,0.93387295]
[1646838754989,0.0037023,2742.5,2742.2,12.43481094]
[1646838755190,0.0037023,2742.5,2742.2,11.13]
[1646838755392,0.0037023,2742.5,2742.3,11.13]
[1646838755588,0.029168,2742.7,2742.4,12.43443992]
[1646838755790,3.0737288,2743.2,2742.4,11.13]
[1646838755989,0.029168,2743.1,2742.4,11.13]
[1646838756189,0.0037023,2742.5,2742.4,12.04166]
[1646838756390,0.0037023,2742.5,2742.4,13.3462198]
[1646838756591,0.0037023,2742.5,2742.4,13.6462198]
[1646838756838,0.91171,2742.9,2742.4,13.6462198]
[1646838757039,0.91171,2742.9,2742.6,1.0557421]
[1646838757440,0.96222081,2742.9,2742.6,1.0557421]
[1646838757844,0.91171,2742.9,2742.6,1.0557421]
[1646838758045,0.05403003,2742.8,2742.6,1.0557421]
[1646838758643,0.05093574,2742.7,2742.6,1.0557421]
[1646838760698,0.05093574,2742.7,2742.6,2.36293181]
[1646838762694,0.00376146,2742.8,2742.6,2.36293181]
[1646838762896,0.05636944,2742.9,2742.7,1.30718971]
[1646838763204,1.80224929,2743.0,2742.7,13.64868971]
[1646838763205,0.00376146,2742.8,2742.7,13.64868971]
[1646838763596,0.00376146,2742.8,2742.7,13.94868971]
[1646838763797,0.00376146,2742.8,2742.7,2.81868971]
[1646838764097,0.00376146,2742.8,2742.7,13.94868971]
[1646838764336,1.80224929,2743.0,2742.7,14.86018081]
[1646838764337,0.00153775,2742.9,2742.7,14.86018081]
[1646838764539,0.00153775,2742.9,2742.8,12.88218971]
[1646838764938,0.19481995,2743.0,2742.9,4.5]
[1646838765139,0.19481995,2743.0,2742.9,1.30718971]
[1646838765558,0.19481995,2743.0,2742.9,1.60718971]
[1646838766440,0.19481995,2743.0,2742.9,1.30718971]
[1646838768684,0.21244122,2743.0,2742.9,1.30718971]
[1646838769487,0.42897376,2743.0,2742.9,1.30718971]
[1646838772363,0.91167,2742.8,2742.2,4.03998608]
[1646838772542,3.5,2742.7,2741.9,0.67638573]
[1646838772741,0.029168,2742.5,2741.7,4.32268573]
[1646838772944,0.029168,2742.5,2741.8,1.58847573]
[1646838773242,0.029168,2742.5,2741.8,0.91209]
[1646838773454,0.91209,2742.4,2741.8,0.91209]
[1646838774041,0.91209,2742.4,2741.6,0.67638573]
[1646838774440,0.91215,2742.3,2741.6,1.67496624]
[1646838774640,1.82437,2742.2,2741.6,1.67496624]
[1646838774841,1.82437,2742.2,2741.6,1.97496624]
[1646838775142,1.853538,2742.2,2741.6,1.97496624]
[1646838775591,1.853538,2742.2,2741.7,0.67638573]
[1646838775794,1.853538,2742.2,2741.8,0.91213]
[1646838776392,1.853538,2742.2,2741.7,0.3]
[1646838776592,1.853538,2742.2,2741.6,3.79914624]
[1646838776795,1.853538,2742.2,2741.6,4.09914624]
[1646838776996,1.853538,2742.2,2741.6,3.79914624]
[1646838777196,1.853538,2742.2,2741.6,2.12418]
[1646838777501,0.941438,2742.0,2741.5,0.67638573]
[1646838777700,0.941438,2742.0,2741.4,0.67638573]
[1646838778197,0.92398565,2742.0,2741.4,0.67638573]
[1646838778399,0.92398565,2742.0,2741.3,2.50071573]
[1646838778796,0.92398565,2742.0,2741.3,3.46995362]
[1646838778997,3.66078565,2742.0,2741.3,3.46995362]
[1646838779198,3.66078565,2742.0,2741.3,1.82433]
[1646838779439,3.66078565,2742.0,2741.2,0.67638573]
[1646838779440,0.029168,2741.7,2741.2,0.67638573]
[1646838779639,0.029168,2741.7,2741.1,1.58873573]
[1646838779838,0.07733932,2741.7,2741.1,0.91235]
[1646838780240,0.07733932,2741.7,2741.1,1.93959417]
[1646838780241,0.91234,2741.6,2741.1,1.93959417]
[1646838780439,0.04479414,2741.5,2741.1,1.93959417]
[1646838781843,0.04479414,2741.5,2741.1,6.4159799]
[1646838782047,0.029168,2741.7,2741.2,3.41243573]
[1646838782048,0.08231767,2741.7,2741.2,3.41243573]
[1646838782246,0.08231767,2741.7,2741.3,3.5]
[1646838782649,0.05314967,2741.7,2741.3,3.5]
[1646838782846,0.91203,2741.9,2741.4,5.67638573]
[1646838783098,0.91203,2741.9,2741.6,1.04127204]
[1646838783291,0.91203,2741.9,2741.6,1.34127204]
[1646838783490,0.91203,2741.9,2741.7,3.5]
[1646838783690,3.10082211,2742.2,2741.6,1.64127204]
[1646838783691,0.08051522,2742.2,2741.6,1.64127204]
[1646838783896,0.01505746,2742.2,2741.7,3.5]
[1646838784091,0.01505746,2742.2,2741.7,4.62138573]
[1646838784302,0.01505746,2742.2,2741.8,0.74588404]
[1646838784489,0.01505746,2742.2,2741.9,0.08806095]
[1646838784689,0.029168,2742.4,2741.9,3.58806095]
[1646838784990,2.77515498,2742.8,2742.5,0.93157398]
[1646838785192,1.92307491,2743.2,2742.5,0.93157398]
[1646838785391,1.82356,2742.9,2742.5,0.93157398]
[1646838785590,0.04465573,2742.8,2742.5,0.93157398]
[1646838785991,0.04465573,2742.8,2742.6,0.97661759]
[1646838787434,0.04840886,2742.8,2742.6,0.97661759]
[1646838787636,0.96017886,2742.8,2742.6,0.97661759]
[1646838788038,0.91552313,2742.8,2742.7,3.5]
[1646838788241,1.82317,2743.3,2742.7,3.5891482]
[1646838788436,1.2239801,2743.7,2742.7,3.5891482]
[1646838788634,0.00375313,2742.8,2742.7,3.5891482]
[1646838788838,0.01501025,2743.2,2742.7,0.0891482]
[1646838789042,0.01501025,2743.2,2742.8,3.0]
[1646838789239,0.01501025,2743.2,2742.8,1.21158]
[1646838789438,0.04981964,2743.4,2742.8,0.91158]
[1646838789641,0.04599724,2743.6,2742.8,1.21158]
[1646838789838,0.04599724,2743.6,2742.8,4.71158]
[1646838790037,0.04599724,2743.6,2742.8,1.51158]
[1646838790337,0.04599724,2743.6,2743.0,3.03452]
[1646838790786,0.91157,2743.5,2743.0,3.03452]
[1646838790986,0.00153397,2743.3,2743.0,3.03452]
[1646838791184,0.00153397,2743.3,2743.0,4.01298585]
[1646838791185,1.82505397,2743.3,2743.0,4.01298585]
[1646838791784,1.82352,2743.3,2743.0,0.3]
[1646838791988,1.82352,2743.3,2742.8,1.21158]
[1646838791989,1.86771212,2743.3,2742.8,1.21158]
[1646838792188,1.86924425,2743.3,2742.8,1.21158]
[1646838792388,0.23216749,2743.2,2742.9,1.26678449]
[1646838792589,0.27633347,2743.2,2742.9,1.26678449]
[1646838792791,0.23216749,2743.1,2742.9,2.39437532]
[1646838792994,0.23216749,2743.1,2742.9,1.12759083]
[1646838793188,0.28423977,2743.1,2742.9,1.12759083]
[1646838793389,0.23216749,2743.0,2742.9,1.12759083]
[1646838793591,0.23216749,2743.0,2742.9,2.39427618]
[1646838795147,0.92759585,2743.5,2743.0,3.0]
[1646838795347,0.92759585,2743.5,2743.0,5.3231]
[1646838795547,0.9116,2743.5,2743.0,5.6231]
[1646838795749,0.05918333,2743.6,2743.0,5.6231]
[1646838795947,0.00399956,2743.1,2743.0,5.6231]
[1646838796148,0.01599585,2743.5,2743.0,4.6231]
[1646838796348,0.01599585,2743.5,2743.4,0.96612341]
[1646838796753,0.97075333,2743.6,2743.3,1.21155]
[1646838796951,0.97075333,2743.6,2743.3,0.3]
[1646838797257,0.04320316,2743.5,2743.1,0.3]
[1646838797450,0.95497316,2743.5,2743.1,0.3]
[1646838797649,0.05004764,2743.4,2742.5,3.58694973]
[1646838797851,0.91171,2743.3,2742.6,1.02629674]
[1646838798101,0.05321907,2743.2,2742.9,1.82343]
[1646838798300,0.91171,2743.3,2742.9,1.82343]
[1646838798792,0.05200534,2743.2,2742.9,1.82343]
[1646838799400,0.05588479,2743.2,2742.9,1.82343]
[1646838800194,0.05200534,2743.2,2742.9,1.82343]
[1646838800594,0.05588476,2743.2,2742.9,1.82343]
[1646838800796,0.00387942,2743.2,2742.9,1.82343]
[1646838801495,0.91171,2743.3,2742.9,1.82343]
[1646838801697,0.0037457,2743.2,2742.9,1.82343]
[1646838802642,0.91171,2743.3,2742.9,1.82343]
[1646838802840,0.0037457,2743.2,2742.9,1.82343]
[1646838803846,0.01837151,2743.2,2742.9,1.82343]
[1646838804048,0.02211721,2743.2,2742.9,1.82343]
[1646838804550,0.02211721,2743.2,2743.0,0.08024455]
[1646838804945,0.02211721,2743.2,2743.1,1.15140997]
[1646838805148,0.01837151,2743.2,2742.9,1.82343]
[1646838805350,0.02212626,2743.2,2743.0,0.3]
[1646838805596,0.02212626,2743.2,2743.0,1.21171]
[1646838806188,0.01837151,2743.2,2742.9,1.82343]
[1646838806592,0.02212626,2743.2,2742.9,1.82343]
[1646838807097,2.75760626,2743.2,2742.9,1.82343]
[1646838807294,0.91198,2743.1,2742.5,0.01979398]
[1646838808193,0.91198,2743.1,2742.5,1.84350398]
[1646838810035,0.91198,2743.1,2742.5,0.93164398]
[1646838813895,2.73574,2742.9,2742.5,0.01979398]
[1646838814092,3.5,2742.8,2742.5,0.01979398]
[1646838814291,0.91208,2742.8,2742.5,0.01979398]
[1646838814490,4.41208,2742.8,2742.1,0.029168]
[1646838814896,0.91208,2742.8,2742.1,0.029168]
[1646838815093,0.20680536,2742.7,2742.2,2.20435754]
[1646838815294,0.20680536,2742.7,2742.3,3.11610754]
[1646838815496,0.20680536,2742.7,2742.4,1.29239754]
[1646838815695,0.20680536,2742.7,2742.5,0.07487419]
[1646838815896,0.20680536,2742.7,2742.6,1.29239754]
[1646838823299,0.20680536,2742.7,2742.3,0.07998749]
[1646838823497,0.20680536,2742.7,2742.4,1.29239754]
[1646838824744,0.20680536,2742.7,2742.5,0.07512642]
[1646838824943,0.20680536,2742.7,2742.6,1.29239754]
[1646838827648,0.93029364,2742.8,2742.6,1.29239754]
[1646838828196,0.20706841,2742.7,2742.6,1.29239754]
[1646838828395,0.20707524,2742.7,2742.6,1.29239754]
[1646838829796,0.20707524,2742.7,2742.4,0.91194]
[1646838829996,0.20707524,2742.7,2742.5,1.30436795]
[1646838830195,0.19775588,2742.6,2742.5,1.30436795]
[1646838830394,0.19775922,2742.7,2742.5,1.30436795]
[1646838830594,0.93029364,2742.8,2742.5,1.30436795]
[1646838830998,0.19767527,2742.7,2742.5,1.30436795]
[1646838831194,0.93029364,2742.8,2742.5,1.30436795]
[1646838831598,0.19768147,2742.7,2742.6,0.07644401]
[1646838831853,0.93029364,2742.8,2742.6,1.38081196]
[1646838832053,0.93029364,2742.8,2742.7,1.3041734]
[1646838832253,1.12797123,2742.8,2742.7,1.3041734]
[1646838833154,6.0,2742.7,2742.2,2.50020573]
[1646838833369,3.5,2742.6,2742.0,0.00375574]
[1646838833562,0.04746758,2742.5,2742.0,0.00375574]
[1646838833961,7.82447,2742.4,2741.7,7.91125373]
[1646838834161,0.04873292,2742.3,2741.7,6.984868]
[1646838834361,0.04873292,2742.3,2742.0,0.00375549]
[1646838834562,0.04873292,2742.3,2741.7,0.029168]
[1646838834563,0.04783984,2742.1,2741.7,0.029168]
[1646838835602,1.82439,2742.0,2741.7,0.029168]
[1646838835794,0.05401517,2741.9,2741.6,1.21226]
[1646838836191,0.05401517,2741.9,2741.6,0.91226]
[1646838837196,2.79079517,2741.9,2741.6,0.91226]
[1646838837496,0.05851904,2741.7,2741.6,0.91226]
[1646838837997,0.0222346,2741.8,2741.7,0.04166034]
[1646838839344,3.5222346,2741.8,2741.7,0.04166034]
[1646838839641,3.5222346,2741.8,2741.4,0.029168]
[1646838839642,6.0,2741.7,2741.4,0.029168]
[1646838839841,0.91234,2741.6,2741.4,0.029168]
[1646838840043,0.96655647,2741.6,2741.2,0.91233]
[1646838840444,0.0222346,2741.5,2741.2,0.91233]
[1646838841144,0.0222346,2741.5,2741.4,1.10315702]
[1646838841544,0.0222346,2741.5,2741.4,1.21849152]
[1646838842547,0.0222346,2741.5,2741.4,0.1153345]
[1646838843102,0.0222346,2741.5,2741.4,0.029168]
[1646838843292,0.0222346,2741.5,2741.4,0.09923676]
[1646838844294,0.04255374,2741.5,2741.4,0.09923676]
[1646838845697,0.04255374,2741.5,2741.3,2.74019764]
[1646838846095,0.04255374,2741.5,2741.3,2.73627]
[1646838846502,0.04255374,2741.5,2741.3,2.73195219]
[1646838846700,0.04255374,2741.5,2741.3,3.89688809]
[1646838847147,0.04255374,2741.5,2741.3,8.39688809]
[1646838847148,0.0222346,2741.5,2741.3,8.39688809]
[1646838847950,0.0222346,2741.5,2741.3,11.89688813]
[1646838848150,0.0222346,2741.5,2741.4,3.5]
[1646838848350,0.0222346,2741.5,2741.4,0.08932402]
[1646838848848,0.0222346,2741.5,2741.4,3.58932402]
[1646838851395,2.737,2741.8,2741.5,6.0]
[1646838851631,1.2134,2742.2,2741.5,6.0]
[1646838851632,1.2134,2742.2,2741.8,2.73577]
[1646838851798,2.72063499,2742.6,2741.9,3.57885286]
[1646838852006,0.00353499,2742.6,2741.9,0.07885286]
[1646838852602,0.00353499,2742.6,2742.2,1.16833503]
[1646838852800,1.83095286,2742.6,2742.2,2.99217503]
[1646838853000,1.82741787,2742.6,2742.2,2.99217503]
[1646838853203,0.20828619,2742.5,2742.2,2.99217503]
[1646838855847,0.20828619,2742.5,2742.3,1.28878213]
[1646838856958,0.20828619,2742.5,2742.3,2.20068213]
[1646838857153,0.20828619,2742.5,2742.4,1.28878213]
[1646838858101,0.20828619,2742.5,2742.3,0.51826947]
[1646838858300,0.20828619,2742.5,2742.2,1.82384]
[1646838858301,0.05157701,2742.4,2742.2,1.82384]
[1646838858501,0.20828619,2742.3,2742.2,1.82384]
[1646838858800,0.20828619,2742.3,2742.0,0.3]
[1646838859001,0.20828619,2742.2,2742.0,0.3]
[1646838859199,0.20828619,2742.1,2741.7,0.89794778]
[1646838859408,3.78828701,2742.4,2741.9,1.30275989]
[1646838859409,2.03273619,2742.0,2741.9,1.30275989]
[1646838865461,1.82445,2742.0,2741.9,1.30275989]
[1646838866301,2.01416482,2742.0,2741.9,1.30275989]
[1646838867501,2.01416482,2742.0,2741.9,1.30073787]
[1646838869360,0.18971482,2742.0,2741.9,1.30073787]
[1646838869546,0.91221,2742.3,2741.9,4.80073787]
[1646838869747,0.91221,2742.3,2741.9,1.21192]
[1646838870350,0.91221,2742.3,2742.0,0.92853271]
[1646838870950,0.91221,2742.3,2741.9,1.21192]
[1646838871953,0.91221,2742.3,2741.9,2.36903741]
[1646838873197,4.41221,2742.3,2741.9,1.21192]
[1646838873403,0.91221,2742.3,2741.9,1.21192]
[1646838874403,1.8244,2742.3,2741.9,1.21192]
[1646838875704,2.7366211,2742.3,2741.9,1.21192]
[1646838875905,2.73667,2742.2,2741.9,1.21192]
[1646838877358,0.3,2742.1,2741.9,1.21192]
[1646838878162,0.3,2742.1,2741.9,0.92038135]
[1646838878562,0.3,2742.1,2741.9,0.62038135]
[1646838879162,0.3,2742.1,2741.9,0.91219]
[1646838879366,3.73667,2742.2,2741.9,0.91219]
[1646838879564,3.73667,2742.2,2741.9,1.21219]
[1646838880369,3.73667,2742.2,2742.0,1.21425077]
[1646838880370,2.73667,2742.2,2742.0,1.21425077]
[1646838880612,0.91221,2742.3,2742.0,1.21425077]
[1646838880613,0.91221,2742.3,2742.1,0.029168]
[1646838880813,5.09879753,2742.6,2742.1,0.940998]
[1646838881113,3.91439463,2742.6,2742.1,0.940998]
[1646838881615,3.9143947,2742.6,2742.3,0.029168]
[1646838882419,3.9108271,2742.6,2742.3,0.029168]
[1646838882617,3.91439349,2742.6,2742.3,0.029168]
[1646838883626,3.9108271,2742.6,2742.3,0.029168]
[1646838883821,3.91439349,2742.6,2742.3,0.029168]
[1646838884360,3.91439349,2742.6,2742.1,0.91183]
[1646838884361,5.59125332,2742.6,2742.1,0.91183]
[1646838884553,0.3,2742.5,2742.1,0.91183]
[1646838884952,0.97685983,2742.5,2742.1,0.91183]
[1646838885453,0.97685983,2742.5,2742.0,2.152818]
[1646838886054,0.97685983,2742.5,2742.0,0.329168]
[1646838886254,0.97685983,2742.5,2742.0,0.029168]
[1646838887258,0.3,2742.5,2742.0,0.029168]
[1646838887655,2.90633291,2742.4,2742.1,1.33232312]
[1646838887857,0.16984291,2742.3,2742.1,1.33232312]
[1646838890910,2.73649,2742.4,2742.1,1.33232312]
[1646838891708,3.64866,2742.4,2742.1,1.33232312]
[1646838891965,4.32551983,2742.4,2742.1,1.33232312]
[1646838892156,3.64866,2742.4,2742.1,1.33232312]
[1646838892360,2.73649,2742.4,2742.1,1.33232312]
[1646838892757,2.73649,2742.4,2742.1,2.24433312]
[1646838893057,2.73649,2742.4,2742.1,0.91201]
[1646838894259,2.73649,2742.4,2742.2,0.029168]
[1646838894460,0.91458837,2742.6,2742.2,0.029168]
[1646838894461,0.9108271,2742.6,2742.2,0.029168]
[1646838894660,0.91458837,2742.6,2742.3,0.029168]
[1646838895701,0.9108271,2742.6,2742.3,0.029168]
[1646838895902,0.91458848,2742.6,2742.3,0.029168]
[1646838896902,0.9108271,2742.6,2742.3,0.029168]
[1646838897129,0.91458841,2742.6,2742.3,0.029168]
[1646838897504,0.91458841,2742.6,2742.3,1.10673116]
[1646838898107,0.9108271,2742.6,2742.3,1.10673116]
[1646838898305,0.91458841,2742.6,2742.3,1.10673116]
[1646838899207,0.9108271,2742.6,2742.3,1.10673116]
[1646838899452,0.91458841,2742.6,2742.3,1.10673116]
[1646838900360,0.68372688,2743.2,2742.7,6.0]
[1646838900558,3.64764,2743.7,2742.7,6.0]
[1646838900559,0.90235298,2743.8,2742.9,6.0]
[1646838900753,2.01562409,2744.0,2742.9,8.71918016]
[1646838900754,0.01418713,2743.0,2742.9,8.71918016]
[1646838900954,7.0363,2744.1,2743.5,0.029168]
[1646838900955,2.72522298,2744.1,2743.5,0.029168]
[1646838901153,0.90235298,2744.1,2743.7,0.029168]
[1646838901359,2.07945298,2744.2,2743.7,1.18021524]
[1646838901552,0.90235298,2744.4,2744.0,0.029168]
[1646838901754,4.9677,2744.5,2744.0,0.029168]
[1646838901755,0.90235298,2744.5,2744.0,0.029168]
[1646838901955,0.90235298,2744.5,2744.1,0.91126]
[1646838902155,0.90235298,2744.5,2744.1,1.240428]
[1646838902358,0.90235298,2744.6,2744.1,1.240428]
[1646838902659,0.90235298,2744.5,2744.1,1.240428]
[1646838902861,0.90235298,2744.7,2744.1,1.240428]
[1646838903096,0.91128,2744.5,2744.1,1.240428]
[1646838903500,0.90235298,2744.7,2744.3,0.029168]
[1646838903699,2.07945298,2744.9,2744.6,1.12570567]
[1646838903905,0.90235298,2744.9,2744.6,2.03681567]
[1646838904297,0.90235298,2744.9,2744.6,0.940278]
[1646838904498,0.91119,2744.9,2744.6,0.940278]
[1646838904898,0.91119,2744.9,2744.7,0.029168]
[1646838905807,0.91518793,2744.9,2744.7,0.029168]
[1646838906407,0.91119,2744.9,2744.7,1.08179914]
[1646838906601,0.91119,2744.9,2744.7,0.029168]
[1646838906861,0.91119,2744.9,2744.6,0.329168]
[1646838907055,0.91119,2744.9,2744.6,0.029168]
[1646838907258,0.91119,2744.9,2744.4,0.029168]
[1646838907959,0.91271006,2744.9,2744.4,0.029168]
[1646838908558,2.73409,2744.8,2744.4,0.029168]
[1646838909159,2.67675002,2744.6,2744.4,0.029168]
[1646838909758,2.67675002,2744.6,2744.0,0.91128]
[1646838910357,2.68076195,2744.6,2744.0,0.91128]
[1646838910611,2.68076195,2744.6,2743.8,2.37254]
[1646838910802,2.68076195,2744.6,2744.0,0.91128]
[1646838911003,2.68076195,2744.6,2744.1,0.08096901]
[1646838911203,2.67675002,2744.6,2744.1,0.08096901]
[1646838911508,3.5,2745.5,2744.4,6.0]
[1646838911711,2.34295427,2745.6,2744.5,6.25638865]
[1646838911712,0.01604639,2744.7,2744.5,6.25638865]
[1646838911914,0.01604639,2744.7,2744.6,5.39401049]
[1646838912110,0.03620052,2745.8,2744.7,6.0]
[1646838912111,0.91083,2745.7,2744.7,6.0]
[1646838912315,0.03620052,2745.8,2744.9,0.07353681]
[1646838912513,0.03620052,2745.8,2745.0,11.96310607]
[1646838912709,0.03620052,2745.8,2745.2,0.08446124]
[1646838912909,0.03620052,2745.8,2745.3,0.445]
[1646838913107,0.03620052,2745.8,2745.6,1.20036773]
[1646838913312,0.03620052,2745.8,2745.5,0.445]
[1646838913513,0.03620052,2745.8,2745.1,1.1803]
[1646838913708,0.03620052,2745.8,2745.1,1.82166]
[1646838914111,0.03748465,2745.8,2745.1,1.82166]
[1646838914353,0.91084,2745.7,2745.3,1.13876029]
[1646838914756,0.3,2745.6,2744.8,3.00218]
[1646838914958,0.3,2745.6,2744.4,0.25]
[1646838915156,0.3,2745.6,2744.4,3.5]
[1646838915355,0.00128413,2745.6,2744.4,3.5]
[1646838915555,0.91108,2745.5,2744.3,1.6253]
[1646838915758,0.91108,2745.5,2744.8,0.87723872]
[1646838916354,0.00381286,2745.0,2744.8,0.87723872]
[1646838916555,0.00381286,2745.0,2744.8,1.78826872]
[1646838916959,0.00381286,2745.0,2744.8,2.08826872]
[1646838917358,0.91108,2745.5,2744.8,2.08826872]
[1646838917559,0.0040257,2745.0,2744.8,2.08826872]
[1646838917962,3.0,2744.8,2744.6,2.14286244]
[1646838918221,4.5,2744.9,2743.4,3.14973451]
[1646838918222,6.0,2744.6,2743.4,3.14973451]
[1646838918425,3.0,2744.0,2743.4,3.14973451]
[1646838918620,0.0120542,2743.7,2743.0,3.20560313]
[1646838918812,0.445,2743.6,2743.0,3.20560313]
[1646838919015,3.5,2743.5,2743.0,3.20560313]
[1646838919213,0.445,2743.4,2742.6,1.60887417]
[1646838919418,5.6886,2743.3,2742.6,1.60887417]
[1646838919613,0.445,2743.2,2742.6,1.60887417]
[1646838919815,3.5,2743.1,2742.6,1.60887417]
[1646838920114,0.445,2743.0,2742.6,1.60887417]
[1646838920314,2.7362795,2742.9,2742.6,1.60887417]
[1646838920513,1.6570451,2743.0,2742.6,1.60887417]
[1646838920514,4.7120451,2743.0,2742.9,0.69692294]
[1646838920714,1.3570451,2743.0,2742.9,0.69692294]
[1646838920917,1.3570451,2743.0,2742.6,1.60887417]
[1646838920918,6.1969,2742.9,2742.6,1.60887417]
[1646838921122,3.945,2742.8,2742.6,1.60887417]
[1646838921318,3.5,2742.7,2742.6,1.61289941]
[1646838921516,3.945,2742.7,2742.6,0.49387634]
[1646838921715,6.3645,2742.6,2741.7,0.01610624]
[1646838921968,0.91221,2742.3,2741.9,0.029168]
[1646838922166,3.5,2742.2,2741.7,0.04527424]
[1646838922358,3.5,2742.2,2741.5,0.029168]
[1646838922359,4.3095,2742.2,2741.5,0.029168]
[1646838922560,4.5595,2742.2,2741.5,0.029168]
[1646838922959,1.82475,2742.1,2741.5,0.029168]
[1646838923162,4.85736,2742.0,2741.5,0.029168]
[1646838924163,0.91237,2741.9,2741.5,0.029168]
[1646838924360,0.3645,2741.7,2740.8,0.07568852]
[1646838924567,2.27006,2741.6,2741.0,0.029168]
[1646838924764,2.27006,2741.6,2741.1,1.36796199]
[1646838924960,2.27006,2741.6,2741.2,0.07650774]
[1646838925463,0.91252,2741.5,2741.3,0.029168]
[1646838926207,0.91252,2741.5,2741.3,0.03319164]
[1646838927007,0.91252,2741.5,2741.3,0.029168]
[1646838927213,0.91252,2741.5,2741.3,0.00402364]